bitfinex-derivatives/quotes_BTCF0:USTF0_20251215
["timestamp","ask_amount","ask_price","bid_price","bid_amount"]
[1765767308408,0.96320137,89384.0,89377.0,0.62508]
[1765767308409,0.25732,89378.0,89377.0,0.62508]
[1765767308803,0.25832,89378.0,89377.0,0.63008]
[1765767309813,0.25932,89378.0,89377.0,0.62008]
[1765767310012,0.9596,89378.0,89377.0,0.62008]
[1765767314504,0.83053,89378.0,89377.0,0.62008]
[1765767314712,0.9596,89378.0,89377.0,0.62008]
[1765767315215,0.002,89378.0,89377.0,0.62008]
[1765767315817,0.13025,89378.0,89377.0,0.62008]
[1765767316114,0.25932,89378.0,89377.0,0.62008]
[1765767316315,0.25832,89378.0,89377.0,0.62508]
[1765767317008,0.25832,89378.0,89377.0,0.63008]
[1765767317404,0.25832,89378.0,89377.0,0.62508]
[1765767317610,0.001,89378.0,89377.0,0.63008]
[1765767317810,0.12925,89378.0,89377.0,0.63008]
[1765767318010,0.25832,89378.0,89377.0,0.62508]
[1765767318210,0.25832,89378.0,89377.0,0.63008]
[1765767318617,0.25832,89378.0,89377.0,0.62508]
[1765767318918,0.25832,89378.0,89377.0,0.62908]
[1765767319421,0.25832,89378.0,89377.0,0.62808]
[1765767320619,0.25832,89378.0,89377.0,0.26728]
[1765767320820,0.25832,89378.0,89377.0,0.62808]
[1765767326629,0.31831693,89378.0,89377.0,0.62808]
[1765767327422,0.25832,89378.0,89377.0,0.62808]
[1765767329016,0.001,89378.0,89377.0,0.62808]
[1765767331329,0.00016777,89386.0,89385.0,0.2899266]
[1765767331628,0.23578,89405.0,89404.0,0.2492942]
[1765767331823,0.23578,89405.0,89404.0,0.6100942]
[1765767332324,0.31061,89405.0,89404.0,0.6100942]
[1765767333033,0.31261,89405.0,89404.0,0.6100942]
[1765767333826,0.24578,89405.0,89404.0,0.6110942]
[1765767334324,0.32061,89405.0,89404.0,0.6110942]
[1765767334522,0.31261,89405.0,89404.0,0.6100942]
[1765767334719,0.32061,89405.0,89404.0,0.6110942]
[1765767335118,0.24578,89405.0,89404.0,0.6110942]
[1765767335721,0.24378,89405.0,89404.0,0.6110942]
[1765767335928,0.24578,89405.0,89404.0,0.6110942]
[1765767337031,0.32061,89405.0,89404.0,0.4916742]
[1765767337328,0.32061,89405.0,89404.0,0.6110942]
[1765767337634,0.32061,89405.0,89380.0,0.16754258]
[1765767337635,0.0111887,89368.0,89360.0,0.3608]
[1765767337924,0.23578,89356.0,89355.0,0.18641]
[1765767338725,0.25976406,89356.0,89355.0,0.18641]
[1765767339225,0.25976406,89356.0,89355.0,0.30583]
[1765767339530,0.25976406,89356.0,89355.0,0.31183]
[1765767340119,0.26076406,89356.0,89355.0,0.31783]
[1765767340322,0.26076406,89356.0,89355.0,0.012]
[1765767341319,0.26630259,89356.0,89355.0,0.012]
[1765767342428,0.23578,89353.0,89352.0,7.837e-05]
[1765767342624,0.62056406,89353.0,89352.0,7.837e-05]
[1765767343729,0.62056406,89353.0,89352.0,0.01707837]
[1765767343730,0.62156406,89353.0,89352.0,0.01707837]
[1765767344134,0.62156406,89353.0,89347.0,0.00016787]
[1765767344135,0.23578,89348.0,89347.0,0.00016787]
[1765767344432,0.25976406,89348.0,89347.0,0.00016787]
[1765767345025,0.25984243,89348.0,89347.0,0.00016787]
[1765767345333,0.26184243,89348.0,89347.0,0.01716787]
[1765767345721,0.26084243,89348.0,89347.0,0.00816787]
[1765767345927,0.26384243,89348.0,89347.0,0.00016787]
[1765767346122,0.26984243,89348.0,89347.0,0.00116787]
[1765767352840,0.28103363,89348.0,89347.0,0.00116787]
[1765767353444,0.28103363,89348.0,89347.0,0.11985787]
[1765767354942,0.28103363,89348.0,89347.0,0.00116787]
[1765767355242,0.28103363,89348.0,89347.0,0.23927787]
[1765767355735,0.28103363,89348.0,89347.0,0.00116787]
[1765767357835,0.28103363,89348.0,89347.0,0.11985787]
[1765767358844,0.28103363,89348.0,89347.0,0.25147787]
[1765767361542,0.64183363,89348.0,89347.0,0.25147787]
[1765767362244,0.63064243,89348.0,89347.0,0.00116787]
[1765767362844,0.63064243,89348.0,89347.0,0.14203787]
[1765767363146,1.33116243,89348.0,89347.0,0.14203787]
[1765767363346,1.33116243,89348.0,89347.0,0.27365787]
[1765767367156,1.33116243,89348.0,89347.0,0.00116787]
[1765767367856,1.33116243,89348.0,89347.0,0.14203787]
[1765767369845,1.33116243,89348.0,89347.0,0.27365787]
[1765767371358,1.41098159,89348.0,89347.0,0.27365787]
[1765767371757,1.33116243,89348.0,89347.0,0.27365787]
[1765767372253,1.41098159,89348.0,89347.0,0.27365787]
[1765767372656,1.41098159,89348.0,89347.0,0.00116787]
[1765767372847,1.38699753,89348.0,89347.0,0.14203787]
[1765767373156,1.33133394,89348.0,89347.0,0.27365787]
[1765767373355,1.33133394,89348.0,89347.0,0.00116787]
[1765767374157,1.33133394,89348.0,89347.0,0.14203787]
[1765767374361,1.4111531,89348.0,89347.0,0.14203787]
[1765767374656,1.4111531,89348.0,89347.0,0.27365787]
[1765767374857,1.4111531,89348.0,89347.0,0.14203787]
[1765767375357,1.4111531,89348.0,89347.0,0.27365787]
[1765767376557,1.33133394,89348.0,89347.0,0.00116787]
[1765767378554,1.33133394,89348.0,89334.0,0.06772]
[1765767378555,0.28561,89335.0,89334.0,0.34021]
[1765767378750,0.30976557,89335.0,89334.0,0.14087]
[1765767379062,0.28561,89331.0,89330.0,0.35505]
[1765767379362,0.30976557,89331.0,89330.0,0.35505]
[1765767380152,0.30976557,89331.0,89325.0,0.08256]
[1765767380153,0.28561,89326.0,89325.0,0.35505]
[1765767380460,0.30984394,89326.0,89325.0,0.35505]
[1765767381262,0.30984394,89326.0,89325.0,0.35905]
[1765767382464,0.31084394,89326.0,89325.0,0.36405]
[1765767387857,0.31084394,89326.0,89325.0,0.009]
[1765767388159,0.31084394,89326.0,89291.0,0.19697329]
[1765767388160,0.26411,89306.0,89305.0,0.33053]
[1765767388361,0.02415557,89306.0,89305.0,0.3417266]
[1765767388565,0.02423394,89306.0,89305.0,0.3417266]
[1765767389462,0.02523394,89306.0,89305.0,0.3507266]
[1765767390060,0.02623394,89306.0,89305.0,0.3577266]
[1765767390458,1.06156787,89314.0,89305.0,0.3577266]
[1765767390459,0.00016787,89314.0,89313.0,0.2632456]
[1765767390659,0.05987332,89329.0,89328.0,0.25205]
[1765767390967,0.2934,89336.0,89335.0,0.32653]
[1765767390968,0.59867332,89336.0,89335.0,0.32653]
[1765767391159,0.4151,89336.0,89335.0,0.32653]
[1765767391354,0.18157332,89337.0,89336.0,0.2632427]
[1765767391554,0.2454,89337.0,89336.0,0.2632427]
[1765767391858,0.2454,89337.0,89336.0,0.25205]
[1765767392060,0.30527332,89337.0,89336.0,0.25205]
[1765767392265,0.2454,89337.0,89336.0,0.2632427]
[1765767392669,0.2464,89337.0,89336.0,0.2642427]
[1765767393460,0.1227,89337.0,89336.0,0.2642427]
[1765767393662,0.001,89337.0,89336.0,0.2642427]
[1765767394366,0.2464,89337.0,89336.0,0.2642427]
[1765767396157,0.2464,89337.0,89336.0,0.001]
[1765767396158,0.6072,89337.0,89336.0,0.001]
[1765767396364,0.2454,89329.0,89328.0,0.00016787]
[1765767396672,0.6062,89329.0,89328.0,0.00016787]
[1765767397467,0.6173936,89329.0,89328.0,0.00016787]
[1765767397676,0.2454,89311.0,89310.0,0.25205]
[1765767398771,0.2464,89311.0,89310.0,0.25605]
[1765767399567,0.2474,89311.0,89310.0,0.26105]
[1765767400585,0.1237,89311.0,89310.0,0.26105]
[1765767400768,0.002,89311.0,89310.0,0.26105]
[1765767401277,0.002,89311.0,89310.0,0.33553]
[1765767402274,0.1237,89311.0,89310.0,0.33553]
[1765767402475,0.14813482,89311.0,89310.0,0.33553]
[1765767404280,0.02643482,89311.0,89310.0,0.33553]
[1765767404479,0.14813482,89311.0,89310.0,0.33553]
[1765767404680,0.27183482,89311.0,89310.0,0.33553]
[1765767405480,0.14813482,89311.0,89310.0,0.33553]
[1765767407080,0.27183482,89311.0,89310.0,0.33553]
[1765767408482,0.02643482,89311.0,89310.0,0.33553]
[1765767408785,0.14813482,89311.0,89310.0,0.33553]
[1765767411378,0.27183482,89311.0,89310.0,0.33553]
[1765767412286,0.14813482,89311.0,89310.0,0.33553]
[1765767412491,0.27183482,89311.0,89310.0,0.33553]
[1765767419195,0.00127693,89311.0,89310.0,0.33553]
[1765767419499,0.00016787,89319.0,89318.0,0.24144]
[1765767420198,0.00016787,89319.0,89318.0,0.252635]
[1765767421302,0.00216787,89319.0,89318.0,0.259635]
[1765767423298,0.05986296,89327.0,89325.0,0.3213341]
[1765767423502,0.13245143,89328.0,89325.0,0.3213341]
[1765767423503,0.17760296,89328.0,89327.0,0.2526339]
[1765767423703,0.11774,89328.0,89327.0,0.2526339]
[1765767423905,0.24041,89328.0,89327.0,0.2526339]
[1765767424489,0.05986296,89329.0,89328.0,0.24144]
[1765767424689,0.00016787,89336.0,89335.0,0.3213329]
[1765767425198,0.11790787,89336.0,89335.0,0.3213329]
[1765767425406,0.24057787,89336.0,89335.0,0.3213329]
[1765767427299,0.24157787,89336.0,89335.0,0.3243329]
[1765767431292,0.2658359,89336.0,89335.0,0.3243329]
[1765767431605,0.2770286,89336.0,89335.0,0.31314]
[1765767431810,0.2770286,89336.0,89335.0,0.003]
[1765767433198,0.27702665,89336.0,89335.0,0.003]
[1765767439515,0.63782665,89336.0,89335.0,0.003]
[1765767441716,0.99862665,89336.0,89335.0,0.003]
[1765767444324,1.07864859,89336.0,89335.0,0.003]
[1765767446527,0.99862665,89336.0,89335.0,0.003]
[1765767447919,0.2391138,89328.0,89327.0,0.00016787]
[1765767448131,0.70419235,89328.0,89327.0,0.10808787]
[1765767449027,0.70419235,89328.0,89327.0,0.00016787]
[1765767449028,0.62416988,89328.0,89327.0,0.00016787]
[1765767449231,0.62516988,89328.0,89327.0,0.00416787]
[1765767449634,0.62516988,89328.0,89327.0,0.00616787]
[1765767450529,0.62516988,89328.0,89327.0,0.22390787]
[1765767451534,0.62516988,89328.0,89327.0,0.11530787]
[1765767452234,0.62516988,89328.0,89327.0,0.00616787]
[1765767453435,0.62516988,89328.0,89327.0,0.11530787]
[1765767456926,0.62516988,89328.0,89327.0,0.00616787]
[1765767457327,0.62516988,89328.0,89327.0,0.22390787]
[1765767460140,0.61397608,89328.0,89327.0,0.22390787]
[1765767460343,1.31457608,89328.0,89327.0,0.22390787]
[1765767462441,1.31457608,89328.0,89327.0,0.00616787]
[1765767462744,1.39460874,89328.0,89327.0,0.00616787]
[1765767462950,1.31457608,89328.0,89327.0,0.00616787]
[1765767463636,1.31457608,89328.0,89327.0,0.22390787]
[1765767466548,1.39460874,89328.0,89327.0,0.22390787]
[1765767466944,0.72585608,89328.0,89327.0,0.22390787]
[1765767467450,0.83431608,89328.0,89327.0,0.22390787]
[1765767468342,0.89441185,89328.0,89327.0,0.22390787]
[1765767468744,1.00683185,89328.0,89327.0,0.22390787]
[1765767468942,0.83431608,89328.0,89327.0,0.22390787]
[1765767469138,0.72585608,89328.0,89327.0,0.22390787]
[1765767470550,0.02525608,89328.0,89327.0,0.22390787]
[1765767471050,0.13371608,89328.0,89327.0,0.22390787]
[1765767478447,0.24613608,89328.0,89327.0,0.22390787]
[1765767479042,0.13371608,89328.0,89327.0,0.22390787]
[1765767480559,0.02525608,89328.0,89327.0,0.22390787]
[1765767486959,0.02050741,89328.0,89327.0,0.22390787]
[1765767487254,0.001,89328.0,89327.0,0.22390787]
[1765767490161,0.00016787,89336.0,89335.0,0.21039]
[1765767490464,0.00016787,89336.0,89335.0,0.57119]
[1765767490863,0.05082608,89346.0,89344.0,0.27302]
[1765767491065,0.57366,89354.0,89353.0,0.2215806]
[1765767492170,0.57866,89354.0,89353.0,0.2225806]
[1765767492354,0.58366,89354.0,89353.0,0.2235806]
[1765767493170,0.11678,89354.0,89353.0,0.2235806]
[1765767493370,0.22366,89354.0,89353.0,0.2235806]
[1765767494071,0.01,89354.0,89353.0,0.2235806]
[1765767499085,0.03400498,89354.0,89353.0,0.2235806]
[1765767500790,4e-08,89354.0,89353.0,0.2235806]
[1765767501486,0.10159004,89354.0,89353.0,0.2235806]
[1765767501688,0.20318004,89354.0,89353.0,0.2235806]
[1765767501989,0.10159004,89354.0,89353.0,0.2235806]
[1765767503594,0.20318004,89354.0,89353.0,0.2235806]
[1765767511193,0.20318004,89354.0,89353.0,0.5843806]
[1765767518705,0.00016787,89362.0,89361.0,0.0111896]
[1765767519003,0.92024,89386.0,89371.0,0.2082084]
[1765767519004,0.09752,89372.0,89371.0,0.2082084]
[1765767519301,0.19504,89372.0,89371.0,0.2082084]
[1765767521497,0.19504,89372.0,89371.0,0.2102084]
[1765767521697,0.19604,89372.0,89371.0,0.2122084]
[1765767521896,0.001,89372.0,89371.0,0.2122084]
[1765767522310,0.22220627,89380.0,89379.0,0.2082074]
[1765767522609,0.1913,89380.0,89379.0,0.2082074]
[1765767524307,0.1993,89380.0,89379.0,0.2092074]
[1765767524610,0.2073,89380.0,89379.0,0.2102074]
[1765767525107,0.1993,89380.0,89379.0,0.2092074]
[1765767525303,0.1913,89380.0,89379.0,0.2092074]
[1765767525504,0.1923,89380.0,89379.0,0.2102074]
[1765767526502,0.09692,89380.0,89379.0,0.2102074]
[1765767526706,0.001,89380.0,89379.0,0.2102074]
[1765767526904,0.001,89380.0,89379.0,0.22143963]
[1765767527512,0.55752,89386.0,89385.0,0.2082066]
[1765767528510,0.19672,89386.0,89385.0,0.2082066]
[1765767528713,0.10763,89386.0,89385.0,0.2102066]
[1765767528920,0.21436,89386.0,89385.0,0.2102066]
[1765767530816,0.22998415,89386.0,89385.0,0.2112066]
[1765767531208,0.22098415,89386.0,89385.0,0.2102066]
[1765767531408,0.22098415,89386.0,89385.0,0.2112066]
[1765767533511,0.22098415,89386.0,89385.0,0.5720066]
[1765767535013,0.02462415,89386.0,89385.0,0.5720066]
[1765767535622,0.21326415,89386.0,89385.0,0.5720066]
[1765767536618,0.21326415,89386.0,89385.0,0.3749866]
[1765767536924,0.21326415,89386.0,89385.0,0.4713066]
[1765767537121,0.21326415,89386.0,89385.0,0.003]
[1765767542716,0.29329681,89386.0,89385.0,0.003]
[1765767542918,0.21326415,89386.0,89385.0,0.003]
[1765767543128,0.29322271,89386.0,89385.0,0.003]
[1765767543326,0.21326415,89386.0,89385.0,0.003]
[1765767546214,0.1890675,89378.0,89377.0,0.00016787]
[1765767546421,0.57349165,89378.0,89377.0,0.00016787]
[1765767547527,0.57449165,89378.0,89377.0,0.00516787]
[1765767547716,0.57449165,89378.0,89362.0,0.2105294]
[1765767547717,0.17702,89363.0,89362.0,0.2105294]
[1765767548025,0.20064415,89363.0,89362.0,0.1075094]
[1765767548332,0.20064415,89363.0,89362.0,0.2105294]
[1765767548818,0.20064415,89363.0,89362.0,0.1075094]
[1765767550221,0.20164415,89363.0,89362.0,0.2115294]
[1765767552233,0.20164415,89363.0,89362.0,0.20034]
[1765767552727,0.20164415,89363.0,89362.0,0.2115295]
[1765767553130,0.20164415,89363.0,89362.0,0.20034]
[1765767554026,0.20164415,89363.0,89362.0,0.001]
[1765767554524,0.20164415,89363.0,89362.0,0.20034]
[1765767572144,0.26165082,89363.0,89362.0,0.20034]
[1765767574144,0.20164415,89363.0,89362.0,0.20034]
[1765767575942,0.17323875,89363.0,89362.0,0.20034]
[1765767576137,0.02462415,89363.0,89362.0,0.20034]
[1765767576543,0.06115034,89363.0,89362.0,0.20034]
[1765767576745,0.08477449,89363.0,89362.0,0.20034]
[1765767577245,0.17708415,89363.0,89362.0,0.20034]
[1765767578638,0.10085415,89363.0,89362.0,0.20034]
[1765767579245,0.17625415,89363.0,89362.0,0.20034]
[1765767584745,0.08017677,89371.0,89362.0,0.20034]
[1765767584746,0.00016787,89371.0,89370.0,0.1995485]
[1765767585949,0.02016787,89371.0,89370.0,0.2015485]
[1765767587046,0.01916787,89371.0,89370.0,0.2015485]
[1765767587945,0.01816787,89371.0,89370.0,0.2015485]
[1765767591869,0.20760787,89371.0,89370.0,0.2015485]
[1765767601166,0.21879627,89371.0,89370.0,0.002]
[1765767605679,0.22449719,89371.0,89370.0,0.002]
[1765767605884,0.19111,89357.0,89356.0,0.23908]
[1765767607085,0.19111,89357.0,89356.0,0.18804]
[1765767607380,0.19211,89357.0,89356.0,0.18804]
[1765767608085,0.19211,89357.0,89356.0,0.18904]
[1765767608480,0.19211,89357.0,89356.0,0.09725]
[1765767608783,0.21548732,89357.0,89356.0,0.18904]
[1765767609177,0.02437732,89357.0,89356.0,0.24552]
[1765767609385,0.10015787,89371.0,89370.0,0.2527085]
[1765767609573,0.00016787,89371.0,89370.0,0.6135085]
[1765767610587,0.00916787,89371.0,89370.0,0.6145085]
[1765767611272,0.01916787,89371.0,89370.0,0.6155085]
[1765767611680,0.00916787,89371.0,89370.0,0.6145085]
[1765767611879,0.00916787,89371.0,89370.0,0.6155085]
[1765767612281,0.00016787,89371.0,89370.0,0.6145085]
[1765767612481,0.00116787,89371.0,89370.0,0.6165085]
[1765767614483,0.10115787,89371.0,89370.0,0.6165085]
[1765767614685,0.00116787,89371.0,89370.0,0.6165085]
[1765767617694,0.19227787,89371.0,89370.0,0.6165085]
[1765767619989,0.19227787,89371.0,89370.0,0.3638]
[1765767620298,0.61304465,89371.0,89370.0,0.003]
[1765767620598,0.55307787,89371.0,89370.0,0.003]
[1765767622792,0.19111,89355.0,89354.0,0.18520787]
[1765767624094,0.19211,89355.0,89354.0,0.19420787]
[1765767624995,0.10099,89355.0,89354.0,0.19020787]
[1765767625193,0.001,89355.0,89354.0,0.19020787]
[1765767625597,0.46079,89356.0,89355.0,0.1962304]
[1765767626693,0.09999,89356.0,89355.0,0.1962304]
[1765767626896,0.10565917,89360.0,89359.0,0.1973199]
[1765767627100,0.09999,89360.0,89359.0,0.1973199]
[1765767627294,0.19393,89360.0,89359.0,0.1973199]
[1765767628103,0.19393,89360.0,89359.0,0.1993199]
[1765767628400,0.55155,89363.0,89362.0,0.19033]
[1765767628999,0.18871164,89369.0,89368.0,0.1975087]
[1765767629304,0.18871164,89369.0,89368.0,0.18632]
[1765767629505,0.24862291,89369.0,89368.0,0.18632]
[1765767629697,0.18871164,89369.0,89368.0,0.18632]
[1765767630006,0.24862291,89369.0,89368.0,0.18632]
[1765767630205,0.24962291,89369.0,89368.0,0.18832]
[1765767630405,0.24962291,89369.0,89368.0,0.18932]
[1765767631596,0.24962291,89369.0,89368.0,0.003]
[1765767631796,0.24962291,89369.0,89368.0,0.10022]
[1765767632408,0.18971164,89369.0,89368.0,0.18932]
[1765767633108,0.24962291,89369.0,89368.0,0.18932]
[1765767633606,0.18971164,89369.0,89368.0,0.18932]
[1765767633807,0.24962291,89369.0,89368.0,0.18932]
[1765767634010,0.18971164,89369.0,89368.0,0.18932]
[1765767637314,0.001,89369.0,89368.0,0.18932]
[1765767638101,0.00016787,89371.0,89370.0,0.23956]
[1765767638306,0.00550963,89380.0,89379.0,0.1975074]
[1765767638909,0.05987126,89385.0,89383.0,0.1975069]
[1765767639212,0.24312126,89385.0,89384.0,0.18632]
[1765767639604,0.14983126,89385.0,89384.0,0.18632]
[1765767640010,0.15983126,89385.0,89384.0,0.18632]
[1765767640612,0.09996,89385.0,89384.0,0.18632]
[1765767640916,0.10996,89385.0,89384.0,0.18732]
[1765767641410,0.01,89385.0,89384.0,0.18732]
[1765767641600,0.10996,89385.0,89384.0,0.18832]
[1765767641799,0.02,89385.0,89384.0,0.18832]
[1765767642404,0.20325,89385.0,89384.0,0.18832]
[1765767642601,0.10996,89385.0,89384.0,0.18832]
[1765767645022,0.20325,89385.0,89384.0,0.18832]
[1765767645218,0.10996,89385.0,89384.0,0.18832]
[1765767646015,0.26312126,89385.0,89384.0,0.002]
[1765767646210,0.23956,89385.0,89384.0,0.002]
[1765767646610,0.20325,89385.0,89384.0,0.002]
[1765767646906,0.20325,89385.0,89384.0,0.18832]
[1765767648724,0.2144366,89385.0,89384.0,0.18832]
[1765767651830,0.2144366,89385.0,89384.0,0.002]
[1765767652225,0.2144366,89385.0,89384.0,0.09922]
[1765767653028,0.2144366,89385.0,89384.0,0.002]
[1765767653731,0.6100066,89385.0,89384.0,0.002]
[1765767654232,0.1944377,89376.0,89375.0,0.00016787]
[1765767654433,0.5552377,89376.0,89375.0,0.00016787]
[1765767655227,0.5552377,89376.0,89365.0,0.18632]
[1765767655228,0.18325,89366.0,89365.0,0.18632]
[1765767655530,0.54405,89366.0,89365.0,0.23956]
[1765767656733,0.54405,89366.0,89365.0,0.24056]
[1765767657128,0.55405,89366.0,89365.0,0.24156]
[1765767657324,0.56505,89366.0,89365.0,0.24156]
[1765767658027,0.56505,89366.0,89365.0,0.002]
[1765767659323,0.18372,89359.0,89358.0,0.18929]
[1765767660326,0.18572,89359.0,89358.0,0.18929]
[1765767661033,0.18672,89359.0,89358.0,0.19029]
[1765767675553,0.18672,89359.0,89358.0,0.001]
[1765767676554,0.19491,89358.0,89357.0,0.00016787]
[1765767676757,0.18372,89341.0,89340.0,0.23374]
[1765767677255,0.18372,89337.0,89336.0,0.23374]
[1765767678762,0.18472,89337.0,89336.0,0.23874]
[1765767680558,0.09553,89337.0,89336.0,0.23874]
[1765767680757,0.18472,89337.0,89336.0,0.23874]
[1765767681452,0.001,89337.0,89336.0,0.23874]
[1765767683054,0.09553,89337.0,89336.0,0.23874]
[1765767684362,0.001,89337.0,89336.0,0.23874]
[1765767685365,0.18472,89337.0,89336.0,0.23874]
[1765767686558,0.001,89337.0,89336.0,0.23874]
[1765767686758,0.18694,89337.0,89336.0,0.23874]
[1765767688167,0.09505,89337.0,89336.0,0.23874]
[1765767688367,0.18694,89337.0,89336.0,0.23874]
[1765767691171,0.18652,89337.0,89336.0,0.23874]
[1765767698873,0.02431006,89337.0,89336.0,0.23874]
[1765767700873,0.20103006,89337.0,89336.0,0.23874]
[1765767703474,0.10956006,89337.0,89336.0,0.24056]
[1765767703882,0.20103006,89337.0,89336.0,0.24056]
[1765767704486,0.20003006,89337.0,89336.0,0.24056]
[1765767704674,0.20103006,89337.0,89336.0,0.23856]
[1765767705372,0.20203006,89337.0,89336.0,0.23856]
[1765767705878,0.20103006,89337.0,89336.0,0.23556]
[1765767706080,0.20203006,89337.0,89336.0,0.23656]
[1765767708985,0.20203006,89337.0,89336.0,0.17996]
[1765767709186,0.20203006,89337.0,89336.0,0.23656]
[1765767710285,0.02531006,89337.0,89336.0,0.23656]
[1765767712272,0.20203006,89337.0,89336.0,0.23656]
[1765767712679,0.02531006,89337.0,89336.0,0.23656]
[1765767712889,0.00016787,89345.0,89344.0,0.2467517]
[1765767713085,0.08525,89356.0,89355.0,0.17896]
[1765767713286,0.17572007,89356.0,89355.0,0.17896]
[1765767714494,0.17672,89359.0,89358.0,0.17896]
[1765767715892,0.17672,89359.0,89358.0,0.18096]
[1765767715893,0.18772,89359.0,89358.0,0.18096]
[1765767716895,0.19872,89359.0,89358.0,0.18196]
[1765767719194,0.022,89359.0,89358.0,0.19300645]
[1765767720599,0.00016787,89364.0,89363.0,0.17476]
[1765767720896,0.00016787,89364.0,89363.0,0.53556]
[1765767721593,0.23865541,89389.0,89388.0,0.17476]
[1765767721893,0.17873,89389.0,89388.0,0.1859462]
[1765767722895,0.17873,89389.0,89388.0,0.17576]
[1765767722896,0.18073,89389.0,89388.0,0.17576]
[1765767727305,0.2403163,89389.0,89388.0,0.17576]
[1765767727710,0.18073,89389.0,89388.0,0.17576]
[1765767729502,0.002,89389.0,89388.0,0.17576]
[1765767729897,0.00016787,89389.0,89388.0,0.17576]
[1765767730214,0.17873,89407.0,89406.0,0.185944]
[1765767730602,0.4203863,89412.0,89411.0,0.1859434]
[1765767730603,0.53953,89412.0,89411.0,0.1859434]
[1765767731303,0.17873,89420.0,89419.0,0.1859424]
[1765767731905,0.2383163,89425.0,89424.0,0.2378017]
[1765767732108,0.17873,89425.0,89424.0,0.2378017]
[1765767732305,0.08881,89425.0,89424.0,0.2378017]
[1765767732507,0.17873,89425.0,89424.0,0.2378017]
[1765767734116,0.17873,89425.0,89424.0,0.2398017]
[1765767734814,0.17873,89425.0,89424.0,0.2428017]
[1765767735212,0.44961,89429.0,89428.0,0.1859412]
[1765767735518,0.17873,89436.0,89435.0,0.1859404]
[1765767736602,0.17873,89436.0,89435.0,0.17476]
[1765767737208,0.18573,89436.0,89435.0,0.17476]
[1765767738618,0.19373,89436.0,89435.0,0.17576]
[1765767739507,1e-07,89436.0,89435.0,0.53656]
[1765767739710,0.17873,89458.0,89457.0,0.1859376]
[1765767741018,0.19873,89458.0,89457.0,0.1879376]
[1765767741611,0.18973,89458.0,89457.0,0.1869376]
[1765767741816,0.19773,89458.0,89457.0,0.1879376]
[1765767742410,0.19373,89458.0,89457.0,0.1869376]
[1765767743618,0.17873,89479.0,89478.0,0.08907]
[1765767743808,0.17873,89471.0,89470.0,0.00016767]
[1765767744011,0.53953,89471.0,89470.0,0.00016767]
[1765767744620,0.7608,89471.0,89450.0,0.1859385]
[1765767744812,0.17873,89451.0,89450.0,0.1859385]
[1765767746713,0.16685701,89459.0,89458.0,0.1860075]
[1765767746921,0.16685701,89459.0,89458.0,0.08786]
[1765767747312,0.16669,89454.0,89453.0,0.08786]
[1765767747514,0.16669,89448.0,89447.0,0.17483]
[1765767748622,0.16669,89443.0,89442.0,0.17499767]
[1765767750127,0.16669,89443.0,89442.0,0.18099767]
[1765767750619,0.16669,89443.0,89442.0,0.18599767]
[1765767754727,0.1778694,89443.0,89442.0,0.01116767]
[1765767755927,0.16669,89443.0,89442.0,0.01116767]
[1765767757523,0.17058,89451.0,89450.0,0.1854585]
[1765767758524,0.4203863,89453.0,89452.0,0.17428]
[1765767758525,0.3608,89453.0,89452.0,0.17428]
[1765767758717,0.17058,89458.0,89457.0,0.1854576]
[1765767758922,0.08556701,89459.0,89458.0,0.17428]
[1765767759322,0.17074701,89459.0,89458.0,0.17428]
[1765767760119,0.23633331,89459.0,89458.0,0.17428]
[1765767760321,0.17674701,89459.0,89458.0,0.17428]
[1765767760520,0.00616701,89459.0,89458.0,0.17428]
[1765767760721,0.09156701,89459.0,89458.0,0.17428]
[1765767761229,0.17674701,89459.0,89458.0,0.17428]
[1765767761426,0.00616701,89459.0,89458.0,0.17428]
[1765767761926,0.059647,89465.0,89464.0,0.17428]
[1765767762431,0.059647,89465.0,89464.0,0.1854567]
[1765767762624,0.059647,89466.0,89465.0,0.17428]
[1765767762826,0.145047,89467.0,89466.0,0.1854565]
[1765767763132,0.230227,89467.0,89466.0,0.1854565]
[1765767763827,0.0854,89467.0,89466.0,0.1854565]
[1765767764426,0.17058,89467.0,89466.0,0.1854565]
[1765767765132,0.230227,89467.0,89466.0,0.1854565]
[1765767765729,0.063647,89467.0,89466.0,0.1854565]
[1765767765929,0.004,89467.0,89466.0,0.1854565]
[1765767766128,0.059647,89469.0,89468.0,0.17428]
[1765767766331,0.0854,89478.0,89477.0,0.1854551]
[1765767766527,0.17058,89478.0,89477.0,0.1854551]
[1765767767033,0.0854,89478.0,89477.0,0.1854551]
[1765767767335,0.16530055,89481.0,89480.0,0.17428]
[1765767767525,0.25048055,89481.0,89480.0,0.17428]
[1765767768034,0.25013402,89481.0,89480.0,0.17428]
[1765767769234,0.17058,89481.0,89480.0,0.17428]
[1765767769736,0.17558,89481.0,89480.0,0.53508]
[1765767770333,0.0904,89481.0,89480.0,0.53508]
[1765767770536,0.0904,89481.0,89480.0,0.17428]
[1765767770537,0.17558,89481.0,89480.0,0.17428]
[1765767771431,0.0904,89481.0,89480.0,0.17428]
[1765767771625,0.005,89481.0,89480.0,0.17428]
[1765767771927,0.06462053,89481.0,89480.0,0.17428]
[1765767772128,0.005,89481.0,89480.0,0.17428]
[1765767772535,0.005,89481.0,89480.0,1.67428]
[1765767772738,0.05962053,89483.0,89482.0,0.17428]
[1765767773135,0.05962053,89484.0,89483.0,0.1854544]
[1765767774234,0.25013402,89498.0,89497.0,0.1854526]
[1765767774440,0.17058,89498.0,89497.0,0.1854526]
[1765767775436,0.17058,89498.0,89497.0,0.17428]
[1765767775641,0.17058,89491.0,89490.0,0.2346735]
[1765767777240,0.17558,89491.0,89490.0,0.2346735]
[1765767780149,0.17058,89491.0,89490.0,0.2346735]
[1765767780333,0.17458,89491.0,89490.0,0.2346735]
[1765767781145,0.17458,89491.0,89490.0,0.0111735]
[1765767781439,0.17252,89482.0,89481.0,0.1844646]
[1765767783435,0.17452,89482.0,89481.0,0.1844646]
[1765767785739,0.17252,89481.0,89480.0,1.5]
[1765767787055,0.17452,89481.0,89480.0,1.5]
[1765767789444,0.17352,89481.0,89480.0,1.5]
[1765767791753,0.1836952,89476.0,89473.0,0.3608]
[1765767791943,0.17252,89476.0,89475.0,0.17345767]